bitfinex-derivatives/quotes_ETHF0:USTF0_20250810
["timestamp","ask_amount","ask_price","bid_price","bid_amount"]
[1754785377248,1.81143275,4272.1,4272.0,1.57312]
[1754785377454,0.402,4272.7,4272.0,1.06902]
[1754785377646,1.0053,4272.7,4272.6,0.8701]
[1754785378048,4.05765694,4272.7,4272.6,0.6166]
[1754785378248,4.56045694,4272.7,4272.6,0.6166]
[1754785378740,1.5081,4272.7,4272.6,0.9605]
[1754785378944,0.6481,4272.6,4271.8,3.4613]
[1754785379146,1.262,4271.9,4271.8,3.2078]
[1754785379647,1.5081,4271.9,4271.8,3.8244]
[1754785379946,1.5081,4271.9,4271.8,4.1683]
[1754785381540,0.46797,4272.5,4271.8,4.1683]
[1754785381541,1.2514,4272.4,4272.3,0.6166]
[1754785381750,1.5081,4272.4,4272.3,1.1051]
[1754785382344,1.5081,4272.4,4272.3,1.57309]
[1754785383445,1.5081,4272.4,4272.3,4.78089]
[1754785383751,1.0733,4272.5,4272.4,1.1051]
[1754785383944,1.5081,4272.5,4272.4,1.1051]
[1754785384645,0.8272,4272.5,4272.4,1.1051]
[1754785384850,1.5081,4272.5,4272.4,1.1051]
[1754785385041,1.5081,4272.5,4272.4,1.57308]
[1754785385753,1.5081,4272.5,4272.4,1.42848]
[1754785385951,1.5081,4272.5,4272.4,1.33808]
[1754785386543,1.5081,4272.5,4272.4,1.42768]
[1754785387348,1.5081,4272.5,4272.4,1.33808]
[1754785388753,1.5081,4272.5,4272.4,0.46798]
[1754785390450,1.5081,4272.5,4272.4,0.90698]
[1754785390647,1.5081,4272.5,4272.4,0.46798]
[1754785391043,1.5081,4272.5,4272.4,1.07328]
[1754785391249,1.5081,4272.5,4272.4,1.33798]
[1754785391755,1.5081,4272.5,4272.4,1.42838]
[1754785392455,1.5081,4272.5,4272.4,1.57298]
[1754785393854,1.0926,4272.5,4272.4,1.57298]
[1754785394351,0.2563,4272.8,4272.7,0.64564]
[1754785394352,0.3941,4272.8,4272.7,0.64564]
[1754785394553,1.0859,4273.1,4273.0,1.105]
[1754785394752,0.8205,4273.1,4273.0,1.105]
[1754785394948,1.41861944,4273.7,4273.0,1.105]
[1754785395257,3.84805953,4273.7,4273.6,0.6053]
[1754785395453,3.84805953,4273.7,4273.6,0.344]
[1754785395951,3.84805953,4273.7,4273.6,0.6053]
[1754785395952,4.50755953,4273.7,4273.6,0.6053]
[1754785396155,4.50755953,4273.7,4273.6,1.33784]
[1754785396356,4.50755953,4273.7,4273.6,1.42824]
[1754785396657,4.50755953,4273.7,4273.6,0.9604]
[1754785396953,4.50755953,4273.7,4273.6,1.33784]
[1754785397149,4.50755953,4273.7,4273.6,1.42824]
[1754785397352,0.4264,4273.7,4273.6,1.57284]
[1754785397552,0.8205,4273.7,4273.6,1.57284]
[1754785398657,4.2937,4273.9,4273.8,0.4886]
[1754785398846,4.4681,4273.9,4273.8,1.105]
[1754785399049,4.7244,4273.9,4273.8,1.105]
[1754785399252,3.8086,4273.9,4273.6,0.72914]
[1754785399555,1.5166,4273.7,4273.6,1.57284]
[1754785400954,1.4666,4273.7,4273.6,1.57284]
[1754785401452,0.8205,4274.1,4274.0,1.47819]
[1754785401653,1.98435,4274.5,4274.4,1.235]
[1754785401950,5.08246423,4274.5,4274.4,1.235]
[1754785402958,1.5166,4274.5,4274.4,1.235]
[1754785403557,1.5166,4274.5,4273.8,4.37736]
[1754785403558,1.2659,4274.6,4274.5,1.47815]
[1754785403755,1.1225,4274.4,4274.3,1.07306]
[1754785403950,1.5166,4274.4,4274.3,1.07306]
[1754785404154,1.5166,4274.4,4274.3,1.33776]
[1754785404355,1.5166,4274.4,4274.3,1.70276]
[1754785405258,0.8205,4274.4,4274.3,1.70276]
[1754785405760,1.5166,4274.7,4274.6,1.70273]
[1754785408567,3.2078,4274.9,4274.6,0.526]
[1754785408775,4.4681,4274.9,4274.8,1.235]
[1754785409072,4.7244,4274.9,4274.8,1.235]
[1754785409674,0.1744,4275.3,4275.2,0.46767]
[1754785409869,0.6008,4275.3,4275.2,0.439]
[1754785410171,0.9158,4275.0,4274.9,0.4677]
[1754785410366,1.5166,4275.0,4274.9,0.4677]
[1754785410566,1.5166,4275.0,4274.9,0.8117]
[1754785410764,1.5166,4275.0,4274.9,1.073]
[1754785410971,1.5166,4275.0,4274.9,1.3377]
[1754785411270,2.07106621,4275.3,4275.2,0.72897]
[1754785411473,1.5166,4275.0,4274.9,0.4677]
[1754785412073,1.5166,4274.8,4274.7,1.07302]
[1754785413274,1.5166,4274.8,4274.7,1.70272]
[1754785415871,1.2603,4274.8,4274.7,1.70272]
[1754785417074,0.2507,4274.8,4274.7,1.70272]
[1754785417479,0.6397,4274.8,4274.7,1.70272]
[1754785418182,0.8175,4274.8,4274.7,1.70272]
[1754785418380,1.0774,4274.8,4274.7,1.70272]
[1754785420083,1.3277,4274.8,4274.7,1.70272]
[1754785420282,1.4939,4274.8,4274.7,1.70272]
[1754785428789,0.8992,4274.7,4274.5,3.2078]
[1754785428989,0.6075,4274.6,4274.4,5.34]
[1754785429185,1.97445,4274.5,4274.4,5.34]
[1754785430889,1.07528,4274.2,4274.1,0.81219]
[1754785431086,1.0753,4274.0,4273.9,5.8228]
[1754785431287,1.9745,4274.0,4273.9,5.6844]
[1754785431689,1.5067,4274.0,4273.9,5.9552]
[1754785432083,1.5067,4274.0,4273.9,6.2016]
[1754785432283,1.5067,4274.0,4273.9,6.34]
[1754785432493,1.5067,4274.0,4273.9,6.5615]
[1754785436793,1.5067,4274.0,4273.9,1.2215]
[1754785437788,1.5067,4274.0,4273.8,3.67561]
[1754785437988,1.5067,4274.0,4273.8,3.94641]
[1754785437989,1.5067,4273.9,4273.8,3.94641]
[1754785438393,1.5067,4273.9,4273.8,4.53721]
[1754785438592,1.5067,4273.9,4273.8,4.67561]
[1754785439495,1.5067,4273.9,4273.8,4.89711]
[1754785439998,1.5067,4273.9,4273.8,4.29081]
[1754785440296,1.5067,4273.9,4273.8,4.67561]
[1754785441193,0.4413,4273.4,4273.3,3.2078]
[1754785441499,1.3405,4272.9,4272.8,4.28523]
[1754785441698,1.5067,4272.9,4272.8,4.28523]
[1754785441995,0.8303,4272.9,4272.8,5.18203]
[1754785444301,1.5067,4272.9,4272.8,5.18203]
[1754785444695,1.2564,4272.9,4272.8,5.18203]
[1754785446900,1.5114,4272.9,4272.8,5.18203]
[1754785448203,1.5114,4272.9,4272.8,0.81233]
[1754785448703,1.5114,4272.9,4272.8,0.3444]
[1754785449201,1.5114,4272.9,4272.3,3.2078]
[1754785449202,0.6028,4272.4,4272.3,0.1804]
[1754785449394,1.4808,4272.4,4272.3,0.4357]
[1754785450098,1.4808,4272.4,4272.3,0.64839]
[1754785450400,1.4808,4272.4,4272.3,0.46799]
[1754785450602,1.4808,4272.4,4272.3,1.33119]
[1754785450798,1.4808,4272.4,4272.3,1.99079]
[1754785455904,1.4808,4272.4,4272.3,0.46799]
[1754785456606,1.4808,4272.4,4272.3,0.72329]
[1754785456799,1.4808,4272.4,4272.3,1.07679]
[1754785456995,1.4808,4272.4,4272.3,1.72249]
[1754785457201,1.4808,4272.4,4272.3,0.64839]
[1754785457500,1.4808,4272.4,4272.3,0.90369]
[1754785457900,1.4808,4272.4,4272.3,1.72249]
[1754785458409,1.4808,4272.4,4272.3,1.99079]
[1754785460506,1.9808,4272.4,4272.3,2.49079]
[1754785464505,0.9208,4272.4,4272.3,5.69859]
[1754785464704,1.5438,4272.4,4272.3,5.69859]
[1754785464903,1.2913,4272.4,4272.3,5.69859]
[1754785465106,1.5438,4272.4,4272.3,5.69859]
[1754785465415,1.9808,4272.4,4272.3,5.69859]
[1754785466512,1.2988,4273.2,4273.1,1.4582]
[1754785466713,1.4808,4273.2,4273.1,1.4582]
[1754785467012,4.54340125,4273.2,4273.1,1.4582]
[1754785467213,0.7913,4273.2,4273.1,1.4582]
[1754785468406,0.9938,4273.2,4273.1,1.4582]
[1754785468612,1.4308,4273.2,4273.1,1.4582]
[1754785469314,0.3708,4273.2,4273.1,1.4582]
[1754785469912,0.7413,4273.2,4273.1,1.4582]
[1754785470106,0.76,4273.5,4273.4,0.46787]
[1754785470306,1.4808,4273.5,4273.4,1.42997]
[1754785473317,1.94865,4273.5,4273.4,0.9621]
[1754785473514,1.94865,4273.5,4272.8,3.2078]
[1754785473515,1.2988,4272.9,4272.8,3.2078]
[1754785473816,4.46593562,4272.9,4272.8,3.2078]
[1754785474014,0.6028,4272.7,4272.6,0.90364]
[1754785474215,1.4808,4272.7,4272.6,0.90364]
[1754785474816,1.4808,4272.7,4272.5,0.46796]
[1754785475118,1.4864,4272.6,4272.5,0.81836]
[1754785475321,1.4864,4272.6,4272.5,1.18296]
[1754785475723,1.4864,4272.6,4272.5,1.45126]
[1754785475918,1.4864,4272.6,4272.4,0.46797]
[1754785476115,1.3203,4272.5,4272.4,0.73627]
[1754785476316,1.4864,4272.5,4272.4,1.17527]
[1754785476515,1.4864,4272.5,4272.4,0.64107]
[1754785476919,1.95436,4272.5,4272.4,0.1731]
[1754785477213,1.4864,4272.0,4271.9,0.91362]
[1754785477416,1.4864,4272.0,4271.9,1.45132]
[1754785477621,1.4864,4272.0,4271.9,1.60922]
[1754785479322,1.95442,4272.0,4271.9,0.8846]
[1754785479530,1.95442,4272.0,4271.9,0.6187]
[1754785479723,1.95442,4272.0,4271.9,0.3504]
[1754785480026,1.3203,4271.9,4271.8,0.2683]
[1754785480225,1.4864,4271.9,4271.8,0.2683]
[1754785480930,1.4864,4271.9,4271.8,0.73634]
[1754785481126,1.4864,4271.9,4271.5,0.6329]
[1754785481432,1.4864,4271.6,4271.5,0.91716]
[1754785481633,1.4864,4271.6,4271.5,0.3504]
[1754785481830,4.48568205,4271.6,4271.5,0.81847]
[1754785482129,4.48568205,4271.6,4271.5,1.08677]
[1754785482336,4.48568205,4271.6,4271.5,0.9833]
[1754785482730,4.48568205,4271.6,4271.5,1.1412]
[1754785485933,3.2078,4272.3,4271.5,1.1412]
[1754785485934,0.9816,4272.1,4272.0,0.81842]
[1754785486236,1.2369,4272.5,4272.4,1.1412]
[1754785486636,1.4864,4272.5,4272.4,1.1412]
[1754785487532,1.95436,4272.5,4272.4,1.1412]
[1754785487726,1.4864,4272.5,4272.4,1.60918]
[1754785489036,1.4864,4272.5,4272.4,1.1412]
[1754785489731,0.46798,4272.4,4272.2,0.46799]
[1754785489937,1.4864,4272.2,4272.1,1.4513]
[1754785490238,1.4864,4271.9,4271.7,0.46805]
[1754785490426,1.4864,4271.8,4271.7,0.64115]
[1754785490632,4.57167527,4271.8,4271.7,1.45135]
[1754785490833,4.57167527,4271.8,4271.7,1.60925]
[1754785490834,1.4864,4271.8,4271.7,1.60925]
[1754785491334,0.9816,4272.2,4272.1,0.46801]
[1754785491533,1.4864,4272.2,4272.1,1.60921]
[1754785491732,4.54891519,4272.2,4272.1,1.60921]
[1754785492838,4.54891519,4272.2,4272.1,1.1412]
[1754785493233,1.95446,4271.6,4271.5,0.5]
[1754785493538,4.93423478,4271.6,4271.5,0.9414]
[1754785493741,4.93423478,4271.6,4271.5,1.1187]
[1754785494035,3.23927478,4271.6,4271.5,1.6412]
[1754785494242,0.2595,4272.0,4271.9,0.7908]
[1754785494539,4.34588575,4272.0,4271.9,1.1412]
[1754785494738,4.59538575,4272.0,4271.9,1.1412]
[1754785498043,1.31989,4272.4,4272.3,0.5083]
[1754785498247,1.31989,4272.4,4272.3,1.1412]
[1754785498442,3.83071352,4272.4,4272.3,1.1412]
[1754785498642,4.46521352,4272.4,4272.3,1.1412]
[1754785499539,4.21571352,4272.4,4272.3,1.1412]
[1754785500737,4.46521352,4272.4,4272.3,1.1412]
[1754785503746,4.93319352,4272.4,4272.3,1.1412]
[1754785503946,5.01964425,4272.4,4272.3,1.1412]
[1754785504248,5.01964425,4272.4,4272.3,0.9833]
[1754785504942,1.4864,4272.1,4272.0,0.3504]
[1754785505148,0.623,4271.8,4271.7,0.46805]
[1754785505335,0.9032,4271.7,4271.3,3.2078]
[1754785505535,1.5262,4271.1,4271.0,0.81602]
[1754785505746,1.5262,4271.1,4271.0,1.06922]
[1754785506746,1.5262,4271.1,4271.0,1.32062]
[1754785507048,1.5262,4271.1,4271.0,1.41952]
[1754785507544,1.5262,4271.1,4271.0,1.57772]
[1754785509843,1.5262,4271.1,4271.0,1.41952]
[1754785511247,1.5262,4271.1,4271.0,1.57772]
[1754785512749,1.5262,4271.1,4271.0,1.32062]
[1754785513047,1.5262,4271.1,4271.0,0.3479]
[1754785513249,1.5262,4271.1,4271.0,0.6011]
[1754785513645,1.5262,4271.1,4271.0,0.8525]
[1754785514148,0.9032,4270.8,4270.6,0.5046]
[1754785514449,4.58355571,4270.7,4270.6,1.41957]
[1754785514646,4.58355571,4270.7,4270.6,1.57777]
[1754785514843,1.5262,4270.7,4270.6,1.57777]
[1754785515450,4.734,4271.3,4271.2,0.9514]
[1754785515846,7.73027517,4271.3,4271.2,0.9514]
[1754785516346,7.73027517,4271.3,4271.2,1.41951]
[1754785516546,7.73027517,4271.3,4271.2,0.9514]
[1754785517549,4.52247517,4271.3,4271.2,0.9514]
[1754785518350,4.99057517,4271.3,4271.2,0.9514]
[1754785519055,4.99057517,4271.3,4271.2,1.41951]
[1754785519653,4.52247517,4271.3,4271.2,1.41951]
[1754785519957,4.52247517,4271.3,4271.2,0.9514]
[1754785520758,5.02247517,4271.3,4271.2,1.4514]
[1754785525953,5.02247517,4271.3,4271.2,1.6096]
[1754785526257,5.02247517,4271.3,4271.2,0.5]
[1754785526458,8.23027517,4271.3,4271.2,0.5]
[1754785526656,8.78539469,4271.3,4271.2,0.5]
[1754785527353,0.623,4270.4,4270.3,3.8272]
[1754785527558,1.5262,4270.4,4270.3,4.738]
[1754785529351,1.2619,4270.4,4270.3,4.738]
[1754785529555,1.5262,4270.7,4270.6,1.08756]
[1754785529860,0.55511952,4271.2,4271.1,0.6194]
[1754785530057,0.5,4271.3,4271.2,1.99831]
[1754785530556,0.45,4271.3,4271.2,1.99831]
[1754785531858,0.45,4271.3,4271.2,2.49831]
[1754785534460,0.45,4271.3,4271.2,7.83831]
[1754785535155,0.45,4271.3,4271.2,13.83831]
[1754785542063,0.45,4271.3,4271.2,7.83831]
[1754785551269,0.8419,4271.3,4271.2,7.83831]
[1754785551871,1.2876,4271.3,4271.2,7.83831]
[1754785552168,1.9852,4271.3,4271.2,7.83831]
[1754785552874,1.9852,4271.3,4271.2,6.30811]
[1754785556171,1.9852,4271.3,4271.2,6.55611]
[1754785556983,1.9852,4271.3,4271.2,6.30811]
[1754785557183,1.9852,4271.3,4271.2,5.2093]
[1754785557377,4.15095866,4271.3,4270.8,3.2078]
[1754785557578,0.8865,4270.9,4270.8,3.67595]
[1754785558775,0.8865,4270.9,4270.8,0.46815]
[1754785561981,0.6165,4270.8,4270.7,0.46816]
[1754785562180,0.8865,4270.8,4270.7,0.46816]
[1754785562381,3.94203446,4270.8,4270.6,0.46817]
[1754785562583,0.8865,4270.7,4270.6,0.46817]
[1754785564190,0.8865,4270.7,4270.6,1.36957]
[1754785566485,0.8865,4270.7,4270.6,1.12157]
[1754785567185,0.8865,4270.7,4270.6,0.46817]
[1754785567987,0.8865,4270.7,4270.6,0.84557]
[1754785568191,0.8865,4270.7,4270.6,1.36807]
[1754785568385,0.8865,4270.7,4270.6,1.61447]
[1754785568584,0.8865,4270.7,4270.6,1.79457]
[1754785569492,0.8865,4270.7,4270.6,1.3264]
[1754785569792,0.3433,4270.5,4270.4,0.3774]
[1754785570097,0.8525,4270.5,4270.4,0.3774]
[1754785570591,0.8525,4270.5,4270.4,0.8999]
[1754785570993,0.8525,4270.5,4270.4,1.2548]
[1754785571189,0.8525,4270.5,4270.4,1.5012]
[1754785576298,1.32068,4270.5,4270.4,1.5012]
[1754785576594,0.5092,4270.2,4270.1,0.452]
[1754785576784,0.8525,4270.2,4270.1,1.34143]
[1754785577190,0.8525,4270.2,4270.1,1.96943]
[1754785577893,0.8525,4270.2,4270.1,1.5012]
[1754785583195,1.1175,4270.2,4270.0,3.17723]
[1754785583401,0.6083,4270.2,4270.1,0.6268]
[1754785583804,0.6083,4270.2,4270.1,0.2719]
[1754785583998,1.5006,4270.2,4270.1,0.2719]
[1754785584198,1.5006,4270.2,4270.0,3.17723]
[1754785584396,1.1573,4270.1,4270.0,3.17723]
[1754785584599,1.5006,4270.1,4270.0,3.17723]
[1754785584894,1.5006,4270.1,4270.0,3.44913]
[1754785585301,1.5006,4270.1,4270.0,3.82653]
[1754785585906,1.5006,4270.1,4270.0,4.07713]
[1754785586207,1.5006,4270.1,4270.0,4.25193]
[1754785586407,1.5006,4270.1,4270.0,4.43203]
[1754785587610,1.5006,4270.1,4270.0,4.00133]
[1754785588109,1.5006,4270.1,4270.0,3.44913]
[1754785588807,1.5006,4270.1,4270.0,3.82653]
[1754785590216,1.5006,4270.1,4270.0,4.07713]
[1754785590400,1.5006,4270.1,4270.0,1.54293]
[1754785591411,1.5006,4270.1,4270.0,1.72303]
[1754785595515,2.0006,4270.1,4270.0,1.72303]
[1754785601819,0.5,4270.1,4270.0,1.72303]
[1754785602022,0.1,4270.8,4270.7,1.85506]
[1754785602519,0.2589,4271.4,4271.3,1.4632]
[1754785602719,0.2589,4271.4,4271.3,1.8443]
[1754785604419,0.2089,4271.4,4271.3,1.8443]
[1754785606322,0.1802,4272.0,4271.9,1.2566]
[1754785606532,0.6913,4272.0,4271.9,1.89423]
[1754785606729,1.5297,4272.0,4271.9,1.89423]
[1754785606931,1.5297,4272.0,4271.9,1.72463]
[1754785608332,4.7375,4272.3,4272.2,1.4631]
[1754785608630,4.7375,4272.3,4272.2,0.8177]
[1754785608830,4.7375,4272.3,4272.2,0.3899]
[1754785609035,1.5297,4272.3,4272.2,1.2566]
[1754785609233,1.5297,4272.3,4272.2,1.4262]
[1754785609728,0.4391,4272.3,4272.2,1.8942]
[1754785610440,1.0948,4272.3,4272.2,1.8942]
[1754785610629,1.5297,4272.3,4272.2,1.8942]
[1754785611527,1.5297,4272.3,4272.2,1.3347]
[1754785611727,3.6289894,4272.3,4272.1,3.2078]
[1754785612028,1.5297,4272.2,4271.7,0.6514]
[1754785612235,1.5297,4271.9,4271.8,0.3906]
[1754785612631,1.5297,4271.9,4271.8,0.85864]
[1754785613341,0.6151,4271.9,4271.8,0.46804]
[1754785614246,1.5297,4271.9,4271.8,0.46804]
[1754785614436,1.3567,4271.8,4271.7,0.46805]
[1754785614637,1.5297,4271.8,4271.7,0.46805]
[1754785615044,0.6151,4271.8,4271.6,0.46806]
[1754785615238,1.5297,4271.7,4271.6,0.46806]
[1754785615437,4.63638694,4271.7,4271.6,0.46806]
[1754785615940,1.5297,4271.7,4271.6,0.46806]
[1754785617139,0.2522,4272.0,4271.6,0.46806]
[1754785617443,1.5297,4271.9,4271.8,0.46804]
[1754785617847,4.60431679,4271.9,4271.8,0.46804]
[1754785618738,3.33351679,4271.9,4271.8,0.64544]
[1754785618940,3.8229,4272.3,4272.2,0.6613]
[1754785619139,3.8229,4272.3,4272.2,0.6712]
[1754785619544,4.7375,4272.3,4272.2,0.6712]
[1754785620146,3.4667,4272.3,4272.2,0.8412]
[1754785620341,0.2589,4272.3,4272.2,0.8412]
[1754785620550,1.0978,4272.7,4272.6,0.66125]
[1754785620743,1.2708,4272.7,4272.6,0.67115]
[1754785621047,1.5297,4272.7,4272.6,0.67115]
[1754785621250,1.5297,4272.6,4272.5,0.46796]
[1754785621544,0.9146,4272.5,4271.7,3.2177]
[1754785621737,1.5297,4271.8,4271.7,0.2032]
[1754785622139,1.5297,4271.8,4271.7,0.3732]
[1754785622642,1.5297,4271.8,4271.7,0.84125]
[1754785623047,1.5297,4271.8,4271.7,0.67125]
[1754785623435,1.5297,4271.8,4271.7,0.84125]
[1754785623640,1.5297,4271.8,4271.7,0.67125]
[1754785624744,1.5297,4271.8,4271.7,0.2032]
[1754785625241,1.5297,4271.8,4271.6,0.46806]
[1754785625437,1.4992,4271.7,4271.6,0.66226]
[1754785629352,1.4992,4271.7,4271.6,0.83186]
[1754785630351,1.4992,4271.7,4271.6,0.66226]
[1754785634151,1.4992,4271.7,4271.6,0.65276]
[1754785634648,1.4992,4271.7,4271.6,0.66226]
[1754785635845,1.4992,4271.7,4271.6,0.65276]
[1754785636046,0.55803939,4272.2,4271.4,5.2093]
[1754785636047,0.6089,4271.5,4271.4,5.2093]
[1754785636255,1.4992,4271.5,4271.4,5.3789]
[1754785636854,1.4992,4270.9,4270.8,3.87015]
[1754785637254,1.4992,4270.9,4270.8,3.2078]
[1754785637547,1.4992,4270.8,4270.7,0.46816]
[1754785638254,1.4992,4270.8,4270.7,0.63776]
[1754785638754,1.4992,4270.8,4270.7,0.66236]
[1754785639143,3.2078,4271.3,4271.1,0.65281]
[1754785639348,0.2611,4271.2,4271.1,0.65281]
[1754785639554,0.5153,4271.2,4271.1,0.65281]
[1754785639753,0.5153,4271.2,4271.1,0.66231]
[1754785639950,0.5153,4271.2,4271.1,0.83191]
[1754785640150,0.375,4271.7,4271.1,1.53408]
[1754785640353,1.4992,4271.7,4271.6,0.1942]
[1754785640545,1.9992,4271.7,4271.6,0.6942]
[1754785641457,1.9992,4271.7,4271.6,1.16226]
[1754785641642,1.6242,4271.7,4271.6,1.33186]
[1754785642552,1.0153,4271.7,4271.6,1.33186]
[1754785643658,1.3903,4271.7,4271.6,1.33186]
[1754785644151,1.9992,4271.7,4271.6,1.33186]
[1754785644354,1.9992,4271.7,4271.6,1.16226]
[1754785646253,1.6242,4271.7,4271.6,0.96806]
[1754785646557,1.9992,4271.7,4271.6,1.16226]
[1754785647062,1.6242,4271.7,4271.6,1.16226]
[1754785647244,1.6242,4271.7,4271.6,1.33186]
[1754785647853,1.9992,4271.7,4271.6,1.33186]
[1754785648654,0.7611,4271.7,4271.6,1.16226]
[1754785648849,0.5,4271.7,4271.6,1.33186]
[1754785651250,0.45,4271.7,4271.6,1.33186]
[1754785652854,0.7111,4271.7,4271.6,6.54116]
[1754785655358,0.45,4271.7,4271.6,6.54116]
[1754785655758,0.45,4271.7,4271.6,1.33186]
[1754785657160,0.715,4271.7,4271.6,1.33186]
[1754785657359,0.9862,4271.7,4271.6,1.33186]
[1754785658463,0.715,4271.7,4271.6,1.33186]
[1754785659558,0.45,4271.7,4271.6,1.33186]
[1754785660163,0.715,4271.7,4271.6,1.33186]
[1754785660860,0.9862,4271.7,4271.6,1.33186]
[1754785663666,1.9823,4271.7,4271.6,6.17736]
[1754785664166,1.9823,4271.7,4271.6,5.76746]
[1754785666066,1.9823,4271.7,4271.6,5.2994]
[1754785666267,1.9823,4271.7,4271.6,4.3431]
[1754785666960,1.9823,4271.7,4270.3,3.2078]
[1754785666961,0.1657,4271.0,4270.3,3.2078]
[1754785667163,0.6108,4270.4,4270.3,5.20601]
[1754785675570,0.3471,4270.4,4270.3,3.2078]
[1754785675871,3.6264307,4270.4,4270.3,4.7378]
[1754785676074,0.6108,4270.4,4270.3,4.7378]
[1754785676571,0.7144,4270.4,4270.3,3.4753]
[1754785677273,0.7144,4270.4,4270.3,4.1219]
[1754785677572,0.7144,4270.4,4270.3,4.3007]
[1754785677774,0.7144,4270.4,4270.3,4.5702]
[1754785680073,0.6108,4270.4,4270.3,4.7378]
[1754785685673,4.23172086,4270.4,4270.1,0.46823]
[1754785685876,0.1656,4270.2,4270.1,0.72703]
[1754785686077,0.7,4269.9,4269.5,0.46829]
[1754785686281,0.3324,4269.6,4269.5,0.72709]
[1754785686483,0.7,4269.6,4269.5,0.72709]
[1754785686683,0.7,4269.6,4269.5,0.2588]
[1754785686980,0.7,4269.4,4269.3,0.2588]
[1754785688084,0.7,4269.4,4269.3,0.5117]
[1754785688378,3.5402,4270.2,4270.1,0.6117]
[1754785688585,0.3324,4270.2,4270.1,1.5266]
[1754785688885,0.5963,4270.2,4270.1,1.5266]
[1754785690087,0.5963,4270.1,4270.0,1.73604]
[1754785690486,0.5963,4270.1,4270.0,1.99484]
[1754785690878,0.6668,4270.4,4270.3,1.99481]
[1754785691085,0.5,4270.4,4270.3,1.99481]
[1754785691387,0.5,4270.4,4270.3,5.20261]
[1754785693193,1.2538,4271.4,4271.3,1.0798]
[1754785693388,1.2538,4271.4,4271.3,1.9947]
[1754785693876,0.5873,4271.6,4271.5,0.90887]
[1754785694083,1.2538,4271.6,4271.5,0.685]
[1754785694285,1.3575,4271.6,4271.5,0.685]
[1754785694483,1.3575,4271.6,4271.5,0.2588]
[1754785695090,1.2538,4271.6,4271.5,0.8705]
[1754785695387,1.2538,4271.6,4271.5,1.5266]
[1754785695586,0.6665,4271.5,4271.4,1.1824]
[1754785695786,1.2538,4271.5,4271.4,1.5266]
[1754785697188,0.6575,4271.5,4271.4,1.5266]
[1754785697388,0.9899,4271.7,4271.6,0.6117]
[1754785697589,1.2538,4271.7,4271.6,1.5266]
[1754785699192,1.2538,4271.7,4271.5,3.67588]
[1754785699193,0.5873,4272.2,4272.1,1.5266]
[1754785699687,0.5873,4272.3,4272.2,1.9946]
[1754785699886,1.2538,4272.3,4272.2,1.9946]
[1754785704191,1.3575,4272.3,4272.2,0.7268]
[1754785704691,1.3575,4272.3,4272.2,1.1506]
[1754785705291,1.2538,4272.3,4272.2,1.1506]
[1754785706587,1.2538,4272.3,4272.2,1.5538]
[1754785707090,1.2538,4272.3,4272.2,1.7271]
[1754785707592,0.4026,4272.2,4271.5,3.2078]
[1754785707794,1.3575,4271.6,4271.5,0.72688]
[1754785708592,0.5873,4271.5,4271.4,0.5]
[1754785708793,1.3575,4271.5,4271.4,0.5]
[1754785708990,4.46775415,4271.5,4271.4,0.5]
[1754785709389,4.96775415,4271.5,4271.4,0.5]
[1754785712100,0.3324,4271.0,4270.9,0.2588]
[1754785712288,0.3324,4270.7,4270.6,0.87137]
[1754785712491,0.7,4270.7,4270.6,0.87137]
[1754785712686,0.7,4270.7,4270.6,1.56267]
[1754785712892,0.5963,4270.7,4270.6,1.99477]
[1754785713193,3.62955542,4270.7,4270.6,1.99477]
[1754785714199,3.73325542,4270.7,4270.6,0.2588]
[1754785714903,0.3324,4270.5,4270.4,0.46819]
[1754785715093,0.7,4270.5,4270.4,0.46819]
[1754785715397,0.5963,4270.5,4270.4,1.71889]
[1754785715596,0.5963,4270.5,4270.4,1.96659]
[1754785715797,3.65901646,4270.5,4270.4,1.4984]
[1754785716099,3.65901646,4270.5,4270.4,0.6821]
[1754785716100,3.76281646,4270.5,4270.4,0.6821]
[1754785719199,3.65901646,4270.5,4270.4,0.2477]
[1754785719404,3.76281646,4270.5,4270.4,0.2477]
[1754785720106,0.7061,4270.2,4270.1,0.2477]
[1754785720494,3.81685553,4270.2,4270.1,0.2477]
[1754785721495,3.11075553,4270.2,4270.1,1.5011]
[1754785721701,3.5505,4271.1,4271.0,0.4371]
[1754785721915,4.01862,4271.1,4271.0,1.5011]
[1754785722115,7.02143802,4271.1,4271.0,1.5011]
[1754785722414,7.28103802,4271.1,4271.0,1.5011]
[1754785723409,6.85543802,4271.1,4271.0,1.5011]
[1754785723809,6.67873802,4271.1,4271.0,1.5011]
[1754785724413,6.21061802,4271.1,4271.0,1.5011]
[1754785725717,6.67873802,4271.1,4271.0,1.5011]
[1754785729021,6.21061802,4271.1,4271.0,1.5011]
[1754785730115,3.2078,4271.1,4271.0,1.5011]
[1754785730518,3.7078,4271.1,4271.0,1.5011]
[1754785732818,4.0505,4271.1,4271.0,1.5011]
[1754785733022,4.4139,4271.1,4271.0,1.5011]
[1754785733823,4.3101,4271.1,4271.0,1.5011]
[1754785735720,1.1023,4271.1,4271.0,1.5011]
[1754785739128,0.8427,4271.1,4271.0,1.5011]
[1754785739318,1.1023,4271.1,4271.0,1.5011]
[1754785740530,0.7061,4271.0,4270.9,0.46813]
[1754785740828,0.7061,4271.0,4270.9,1.54903]
[1754785741129,0.6023,4271.0,4270.9,1.96923]